[Event "*** Titled Tuesday Blitz"]
[Site "Chess.com"]
[Date "2020.04.21"]
[Round "2"]
[White "littleozy"]
[Black "AlanZhang"]
[Result "0-1"]
[WhiteElo "2410"]
[BlackElo "2178"]
[TimeControl "180+1"]
[EndTime "10:18:19 PDT"]
[Termination "AlanZhang won by resignation"]

1. d4 {[%clk 0:02:59.2]} 1... Nf6 {[%clk 0:02:59.4]} 2. Nc3 {[%clk 0:02:58.7]}
2... d5 {[%clk 0:02:58.7]} 3. Bg5 {[%clk 0:02:58]} 3... e6 {[%clk 0:02:58.7]} 4.
e4 {[%clk 0:02:56.7]} 4... dxe4 {[%clk 0:02:58.4]} 5. Nxe4 {[%clk 0:02:55.8]}
5... Be7 {[%clk 0:02:58.9]} 6. Bxf6 {[%clk 0:02:56.1]} 6... Bxf6 {[%clk
0:02:57.4]} 7. Nf3 {[%clk 0:02:54.9]} 7... O-O {[%clk 0:02:55.8]} 8. Bd3 {[%clk
0:02:52.3]} 8... Nc6 {[%clk 0:02:46.5]} 9. c3 {[%clk 0:02:51.8]} 9... b6 {[%clk
0:02:45.4]} 10. Qe2 {[%clk 0:02:51.6]} 10... Bb7 {[%clk 0:02:44.6]} 11. h4
{[%clk 0:02:48.8]} 11... e5 {[%clk 0:01:43.7]} 12. d5 {[%clk 0:02:20.2]} 12...
Qxd5 {[%clk 0:01:31.9]} 13. Nxf6+ {[%clk 0:02:18.7]} 13... gxf6 {[%clk
0:01:32.7]} 14. O-O-O {[%clk 0:02:04.9]} 14... Qe6 {[%clk 0:00:57.9]} 15. Nd2
{[%clk 0:01:37.7]} 15... Ne7 {[%clk 0:00:48.7]} 16. Qh5 {[%clk 0:01:25]} 16...
Ng6 {[%clk 0:00:45.1]} 17. Bc4 {[%clk 0:01:16.1]} 17... Bd5 {[%clk 0:00:43.7]}
18. Bxd5 {[%clk 0:01:08.4]} 18... Qxd5 {[%clk 0:00:44.6]} 19. c4 {[%clk
0:01:01.5]} 19... Qe6 {[%clk 0:00:43.3]} 20. Ne4 {[%clk 0:00:59.4]} 20... Kg7
{[%clk 0:00:40.7]} 21. b3 {[%clk 0:00:54.2]} 21... h6 {[%clk 0:00:39.6]} 22. Qf3
{[%clk 0:00:45.7]} 22... f5 {[%clk 0:00:37.4]} 23. Nc3 {[%clk 0:00:42.8]} 23...
Rad8 {[%clk 0:00:36.3]} 24. h5 {[%clk 0:00:40.2]} 24... Ne7 {[%clk 0:00:29.3]}
25. Qb7 {[%clk 0:00:29]} 25... Qc6 {[%clk 0:00:21.1]} 26. Qxc6 {[%clk
0:00:23.2]} 26... Nxc6 {[%clk 0:00:22]} 27. Nd5 {[%clk 0:00:23.2]} 27... Rd7
{[%clk 0:00:21.1]} 28. Rd3 {[%clk 0:00:17.3]} 28... Rfd8 {[%clk 0:00:20.6]} 29.
Rg3+ {[%clk 0:00:16.8]} 29... Kf8 {[%clk 0:00:10.2]} 30. Nf6 {[%clk 0:00:04.9]}
30... Rd6 {[%clk 0:00:09.4]} 31. Rg8+ {[%clk 0:00:04.2]} 31... Ke7 {[%clk
0:00:09.1]} 32. Rxd8 {[%clk 0:00:03.7]} 32... Nxd8 {[%clk 0:00:08.3]} 33. Nd5+
{[%clk 0:00:03.6]} 33... Kd7 {[%clk 0:00:08.6]} 34. Re1 {[%clk 0:00:03]} 34...
c6 {[%clk 0:00:08.1]} 35. Ne3 {[%clk 0:00:02.4]} 35... f4 {[%clk 0:00:07.6]} 36.
Nf5 {[%clk 0:00:02]} 36... Re6 {[%clk 0:00:08.1]} 37. Ng7 {[%clk 0:00:01.6]}
37... Re7 {[%clk 0:00:06.8]} 38. Nf5 {[%clk 0:00:01.7]} 38... Re6 {[%clk
0:00:06.7]} 39. Ng7 {[%clk 0:00:01.6]} 39... Re7 {[%clk 0:00:05.3]} 40. Nf5
{[%clk 0:00:01.6]} 40... Re8 {[%clk 0:00:04.8]} 41. Ng7 {[%clk 0:00:02.5]} 41...
Rg8 {[%clk 0:00:04.5]} 42. Nf5 {[%clk 0:00:02.9]} 42... Ke6 {[%clk 0:00:04.5]}
43. Rxe5+ {[%clk 0:00:03]} 43... Kxe5 {[%clk 0:00:04.5]} 44. Nxh6 {[%clk
0:00:03.9]} 44... Rxg2 {[%clk 0:00:04.3]} 0-1

[Event "*** Titled Tuesday Blitz"]
[Site "Chess.com"]
[Date "2020.04.21"]
[Round "2"]
[White "Corpescador"]
[Black "Chessy222222"]
[Result "1-0"]
[WhiteElo "2394"]
[BlackElo "2093"]
[TimeControl "180+1"]
[EndTime "10:18:19 PDT"]
[Termination "Corpescador won on time"]

1. e4 {[%clk 0:03:00.9]} 1... e5 {[%clk 0:02:59.7]} 2. Nf3 {[%clk 0:03:00.6]}
2... Nc6 {[%clk 0:02:59.8]} 3. Bb5 {[%clk 0:03:00.2]} 3... Nge7 {[%clk
0:02:58.2]} 4. Nc3 {[%clk 0:02:55.6]} 4... g6 {[%clk 0:02:57.7]} 5. d4 {[%clk
0:02:53.3]} 5... exd4 {[%clk 0:02:56.3]} 6. Nd5 {[%clk 0:02:49.3]} 6... Bg7
{[%clk 0:02:52.7]} 7. Bg5 {[%clk 0:02:48.4]} 7... h6 {[%clk 0:02:34.8]} 8. Bf6
{[%clk 0:02:40.7]} 8... Bxf6 {[%clk 0:02:31.1]} 9. Nxf6+ {[%clk 0:02:37.3]} 9...
Kf8 {[%clk 0:02:32]} 10. Qd2 {[%clk 0:02:20.5]} 10... Kg7 {[%clk 0:02:30.5]} 11.
Nxd4 {[%clk 0:02:11]} 11... Kxf6 {[%clk 0:02:11.1]} 12. Qc3 {[%clk 0:01:55.6]}
12... Nxd4 {[%clk 0:01:13.3]} 13. Qxd4+ {[%clk 0:01:46.9]} 13... Ke6 {[%clk
0:01:13.7]} 14. Bc4+ {[%clk 0:01:09.6]} 14... d5 {[%clk 0:01:13.5]} 15. exd5+
{[%clk 0:00:44.9]} 15... Kd6 {[%clk 0:01:13.5]} 16. Qf6+ {[%clk 0:00:33.3]}
16... Kc5 {[%clk 0:01:13.5]} 17. O-O-O {[%clk 0:00:21.7]} 17... Nf5 {[%clk
0:00:53]} 18. Qc3 {[%clk 0:00:19]} 18... Kd6 {[%clk 0:00:52.4]} 19. Qa3+ {[%clk
0:00:13.3]} 19... Kd7 {[%clk 0:00:47.7]} 20. Bb5+ {[%clk 0:00:13.3]} 20... c6
{[%clk 0:00:40.4]} 21. dxc6+ {[%clk 0:00:13.5]} 21... Kc7 {[%clk 0:00:36.5]} 22.
Rxd8 {[%clk 0:00:12.1]} 22... Rxd8 {[%clk 0:00:37.4]} 23. g4 {[%clk 0:00:10.7]}
23... Nd6 {[%clk 0:00:36.6]} 24. cxb7 {[%clk 0:00:08.7]} 24... Bxb7 {[%clk
0:00:37.4]} 25. Qc3+ {[%clk 0:00:06.4]} 25... Kb6 {[%clk 0:00:36.4]} 26. Rd1
{[%clk 0:00:04.6]} 26... Kxb5 {[%clk 0:00:35.5]} 27. Qc7 {[%clk 0:00:04.5]}
27... Bc6 {[%clk 0:00:21.1]} 28. b3 {[%clk 0:00:03.9]} 28... Rac8 {[%clk
0:00:18.4]} 29. Qe7 {[%clk 0:00:03.8]} 29... Rd7 {[%clk 0:00:16.5]} 30. Qe3
{[%clk 0:00:02.6]} 30... a5 {[%clk 0:00:14.3]} 31. Qe5+ {[%clk 0:00:02.5]} 31...
Kb6 {[%clk 0:00:14]} 32. Rxd6 {[%clk 0:00:02.6]} 32... Rxd6 {[%clk 0:00:13.5]}
33. Qxd6 {[%clk 0:00:02.9]} 33... Re8 {[%clk 0:00:13.4]} 34. a4 {[%clk
0:00:02.8]} 34... Re6 {[%clk 0:00:12.3]} 35. Qd4+ {[%clk 0:00:02.9]} 35... Kb7
{[%clk 0:00:11.8]} 36. Kb2 {[%clk 0:00:03.6]} 36... Re8 {[%clk 0:00:10.5]} 37.
Qc5 {[%clk 0:00:03.9]} 37... Ra8 {[%clk 0:00:08.3]} 38. Qc3 {[%clk 0:00:03.8]}
38... Bd5 {[%clk 0:00:05]} 39. Qf6 {[%clk 0:00:03.7]} 39... Rc8 {[%clk 0:00:04]}
40. Qe5 {[%clk 0:00:03.1]} 40... Rd8 {[%clk 0:00:02.1]} 41. c4 {[%clk
0:00:03.1]} 41... Be6 {[%clk 0:00:01.5]} 42. Qxa5 {[%clk 0:00:03.1]} 1-0

[Event "*** Titled Tuesday Blitz"]
[Site "Chess.com"]
[Date "2020.04.21"]
[Round "2"]
[White "Dyadya81"]
[Black "mc4chess"]
[Result "1-0"]
[WhiteElo "2658"]
[BlackElo "2373"]
[TimeControl "180+1"]
[EndTime "10:18:21 PDT"]
[Termination "Dyadya81 won on time"]

1. e4 {[%clk 0:03:00.9]} 1... c5 {[%clk 0:02:47.3]} 2. Nc3 {[%clk 0:03:00.6]}
2... e6 {[%clk 0:02:46.5]} 3. Nf3 {[%clk 0:03:00.5]} 3... a6 {[%clk 0:02:46.3]}
4. d4 {[%clk 0:03:00.9]} 4... cxd4 {[%clk 0:02:47.2]} 5. Nxd4 {[%clk 0:03:01.3]}
5... Qc7 {[%clk 0:02:47.8]} 6. Qf3 {[%clk 0:03:01.7]} 6... Nc6 {[%clk
0:02:46.2]} 7. Nxc6 {[%clk 0:03:01.8]} 7... bxc6 {[%clk 0:02:47.1]} 8. Bd3
{[%clk 0:02:58.4]} 8... d5 {[%clk 0:02:45.7]} 9. Qg3 {[%clk 0:02:58.6]} 9...
Qxg3 {[%clk 0:02:42]} 10. hxg3 {[%clk 0:02:59.5]} 10... h6 {[%clk 0:02:42.1]}
11. exd5 {[%clk 0:02:41.2]} 11... cxd5 {[%clk 0:02:40.2]} 12. Na4 {[%clk
0:02:40.9]} 12... Rb8 {[%clk 0:02:37.6]} 13. Be3 {[%clk 0:02:37.4]} 13... Bd7
{[%clk 0:02:24.4]} 14. Nb6 {[%clk 0:02:30.2]} 14... Bc6 {[%clk 0:02:05.6]} 15.
O-O-O {[%clk 0:02:11.5]} 15... Be7 {[%clk 0:01:51.6]} 16. c4 {[%clk 0:02:07.8]}
16... dxc4 {[%clk 0:01:27.4]} 17. Nxc4 {[%clk 0:02:07.6]} 17... Bxg2 {[%clk
0:01:25.4]} 18. Rhe1 {[%clk 0:02:05.7]} 18... Nf6 {[%clk 0:01:15]} 19. Bf4
{[%clk 0:02:02.2]} 19... Rc8 {[%clk 0:01:10.9]} 20. Kb1 {[%clk 0:02:02.4]} 20...
O-O {[%clk 0:01:08]} 21. Ne3 {[%clk 0:01:37.2]} 21... Bf3 {[%clk 0:01:02.5]} 22.
Bxa6 {[%clk 0:01:32.5]} 22... Ra8 {[%clk 0:00:58.1]} 23. Be2 {[%clk 0:01:29.6]}
23... Be4+ {[%clk 0:00:58.4]} 24. Bd3 {[%clk 0:01:28.7]} 24... Bf3 {[%clk
0:00:58.4]} 25. Rc1 {[%clk 0:01:22.9]} 25... Rfd8 {[%clk 0:00:54.3]} 26. Bc2
{[%clk 0:01:12.6]} 26... Bb4 {[%clk 0:00:49]} 27. Rg1 {[%clk 0:00:58.3]} 27...
Bd2 {[%clk 0:00:44.6]} 28. Rcd1 {[%clk 0:00:44.8]} 28... Bxd1 {[%clk 0:00:41.8]}
29. Rxd1 {[%clk 0:00:44]} 29... Bxe3 {[%clk 0:00:22.7]} 30. Bxe3 {[%clk
0:00:44.9]} 30... Nd5 {[%clk 0:00:22.9]} 31. Bc1 {[%clk 0:00:40.9]} 31... Nb4
{[%clk 0:00:20.5]} 32. Bb3 {[%clk 0:00:35.7]} 32... Rxd1 {[%clk 0:00:19.4]} 33.
Bxd1 {[%clk 0:00:36.6]} 33... Nxa2 {[%clk 0:00:19.5]} 34. Bd2 {[%clk 0:00:27.9]}
34... Rd8 {[%clk 0:00:18.1]} 35. Kc2 {[%clk 0:00:28.3]} 35... Rb8 {[%clk
0:00:13.4]} 36. Bf4 {[%clk 0:00:18.6]} 36... Nb4+ {[%clk 0:00:10.5]} 37. Kb3
{[%clk 0:00:15.6]} 37... Rb7 {[%clk 0:00:10.2]} 38. Bd2 {[%clk 0:00:10.8]} 38...
Nd3+ {[%clk 0:00:09.4]} 39. Kc3 {[%clk 0:00:10.7]} 39... Nxf2 {[%clk 0:00:08.8]}
40. Bf3 {[%clk 0:00:09.9]} 40... Rc7+ {[%clk 0:00:08.1]} 41. Kb3 {[%clk
0:00:09.5]} 41... Nd3 {[%clk 0:00:08]} 42. Ba5 {[%clk 0:00:08.6]} 42... Rc5
{[%clk 0:00:07.3]} 43. Bc3 {[%clk 0:00:08.1]} 43... Rb5+ {[%clk 0:00:05.6]} 44.
Kc4 {[%clk 0:00:06.5]} 44... Ne5+ {[%clk 0:00:05.8]} 45. Kxb5 {[%clk 0:00:06.2]}
45... Nxf3 {[%clk 0:00:06.4]} 46. b4 {[%clk 0:00:06.8]} 46... Ng5 {[%clk
0:00:04.1]} 47. Kc6 {[%clk 0:00:06.6]} 47... Ne4 {[%clk 0:00:04.4]} 48. b5
{[%clk 0:00:06.3]} 48... Nxc3 {[%clk 0:00:01.3]} 49. b6 {[%clk 0:00:06.8]} 1-0

[Event "*** Titled Tuesday Blitz"]
[Site "Chess.com"]
[Date "2020.04.21"]
[Round "2"]
[White "JoachimMouhamad"]
[Black "Durarbayli"]
[Result "0-1"]
[WhiteElo "2355"]
[BlackElo "2809"]
[TimeControl "180+1"]
[EndTime "10:18:21 PDT"]
[Termination "Durarbayli won on time"]

1. e4 {[%clk 0:03:00.9]} 1... c5 {[%clk 0:02:57.3]} 2. Nf3 {[%clk 0:03:00]} 2...
d6 {[%clk 0:02:57.7]} 3. d4 {[%clk 0:02:59.8]} 3... cxd4 {[%clk 0:02:58.6]} 4.
Nxd4 {[%clk 0:03:00.7]} 4... Nf6 {[%clk 0:02:58.9]} 5. Nc3 {[%clk 0:03:00.3]}
5... Nc6 {[%clk 0:02:58.8]} 6. Bg5 {[%clk 0:02:58.9]} 6... Qb6 {[%clk
0:02:58.9]} 7. Nb3 {[%clk 0:02:47.4]} 7... e6 {[%clk 0:02:58.2]} 8. Qd2 {[%clk
0:02:43.2]} 8... a6 {[%clk 0:02:57.3]} 9. O-O-O {[%clk 0:02:41.7]} 9... Be7
{[%clk 0:02:57.5]} 10. Kb1 {[%clk 0:02:39.9]} 10... O-O {[%clk 0:02:55.3]} 11.
f4 {[%clk 0:02:35.2]} 11... Rd8 {[%clk 0:02:54.2]} 12. g4 {[%clk 0:02:29.2]}
12... Qc7 {[%clk 0:02:17.6]} 13. Bd3 {[%clk 0:02:12.3]} 13... b5 {[%clk
0:02:14.3]} 14. Bxf6 {[%clk 0:02:00.4]} 14... Bxf6 {[%clk 0:02:14.1]} 15. g5
{[%clk 0:02:00.6]} 15... Bxc3 {[%clk 0:02:05.5]} 16. Qxc3 {[%clk 0:01:59.7]}
16... Bb7 {[%clk 0:02:06]} 17. h4 {[%clk 0:01:51.5]} 17... Rac8 {[%clk
0:02:05.3]} 18. Qd2 {[%clk 0:01:44.7]} 18... e5 {[%clk 0:01:48.9]} 19. h5 {[%clk
0:01:28.8]} 19... exf4 {[%clk 0:01:46.7]} 20. Qxf4 {[%clk 0:01:25.5]} 20... d5
{[%clk 0:01:26.5]} 21. Qxc7 {[%clk 0:01:08.8]} 21... Rxc7 {[%clk 0:01:26.4]} 22.
exd5 {[%clk 0:01:09.4]} 22... Ne7 {[%clk 0:00:23.6]} 23. d6 {[%clk 0:01:08]}
23... Rxd6 {[%clk 0:00:22]} 24. Rhe1 {[%clk 0:00:30.6]} 24... g6 {[%clk
0:00:18.1]} 25. hxg6 {[%clk 0:00:25.9]} 25... hxg6 {[%clk 0:00:19]} 26. Nd2
{[%clk 0:00:19.1]} 26... Rcd7 {[%clk 0:00:15.4]} 27. Kc1 {[%clk 0:00:18.1]}
27... Kg7 {[%clk 0:00:13.9]} 28. Ne4 {[%clk 0:00:17]} 28... Bxe4 {[%clk
0:00:13.7]} 29. Bxe4 {[%clk 0:00:16]} 29... a5 {[%clk 0:00:09.2]} 30. Rxd6
{[%clk 0:00:15.1]} 30... Rxd6 {[%clk 0:00:09.6]} 31. Bd3 {[%clk 0:00:13.2]}
31... Ng8 {[%clk 0:00:09.8]} 32. Bxb5 {[%clk 0:00:11.5]} 32... Rd5 {[%clk
0:00:10.3]} 33. Bc4 {[%clk 0:00:09.6]} 33... Rxg5 {[%clk 0:00:10.6]} 34. a3
{[%clk 0:00:07.4]} 34... Rc5 {[%clk 0:00:10]} 35. Ba2 {[%clk 0:00:03.9]} 35...
Rb5 {[%clk 0:00:08.4]} 36. Bb3 {[%clk 0:00:02.8]} 36... g5 {[%clk 0:00:06.3]}
37. Bc4 {[%clk 0:00:02.9]} 37... Rc5 {[%clk 0:00:06.4]} 38. b3 {[%clk
0:00:02.5]} 38... g4 {[%clk 0:00:06]} 39. Kd2 {[%clk 0:00:02.8]} 39... f5 {[%clk
0:00:05.2]} 40. Re6 {[%clk 0:00:01.7]} 40... Nf6 {[%clk 0:00:04.9]} 41. Ke3
{[%clk 0:00:01]} 41... Nh5 {[%clk 0:00:04.6]} 0-1

[Event "*** Titled Tuesday Blitz"]
[Site "Chess.com"]
[Date "2020.04.21"]
[Round "2"]
[White "Kingsman132"]
[Black "Biranidun"]
[Result "0-1"]
[WhiteElo "2491"]
[BlackElo "2707"]
[TimeControl "180+1"]
[EndTime "10:18:22 PDT"]
[Termination "Biranidun won by checkmate"]

1. e4 {[%clk 0:03:00.9]} 1... c5 {[%clk 0:02:59.4]} 2. a3 {[%clk 0:02:50.6]}
2... g6 {[%clk 0:02:54.5]} 3. b4 {[%clk 0:02:43.1]} 3... Bg7 {[%clk 0:02:54.6]}
4. Nc3 {[%clk 0:02:40.7]} 4... d6 {[%clk 0:02:54.9]} 5. Bc4 {[%clk 0:02:35]}
5... Nc6 {[%clk 0:02:47]} 6. b5 {[%clk 0:02:34.5]} 6... Ne5 {[%clk 0:02:44.1]}
7. Be2 {[%clk 0:02:30.8]} 7... Nf6 {[%clk 0:02:33.5]} 8. f4 {[%clk 0:02:25.4]}
8... Ned7 {[%clk 0:02:33.6]} 9. Nf3 {[%clk 0:02:23]} 9... O-O {[%clk 0:02:33.2]}
10. O-O {[%clk 0:02:21.1]} 10... b6 {[%clk 0:02:29.2]} 11. Rb1 {[%clk
0:01:36.4]} 11... Bb7 {[%clk 0:02:28.9]} 12. d3 {[%clk 0:01:36.6]} 12... e6
{[%clk 0:02:28.9]} 13. Ng5 {[%clk 0:01:33.9]} 13... Rc8 {[%clk 0:02:25.3]} 14.
f5 {[%clk 0:01:22.6]} 14... exf5 {[%clk 0:02:23.6]} 15. exf5 {[%clk 0:01:20.6]}
15... Ne5 {[%clk 0:01:40.7]} 16. fxg6 {[%clk 0:01:18.2]} 16... hxg6 {[%clk
0:01:40.6]} 17. Bf4 {[%clk 0:01:12]} 17... Qe7 {[%clk 0:01:39.1]} 18. Bf3 {[%clk
0:01:07.9]} 18... Nxf3+ {[%clk 0:01:38.1]} 19. Nxf3 {[%clk 0:01:05.6]} 19... Nd5
{[%clk 0:01:36.1]} 20. Nxd5 {[%clk 0:01:03.6]} 20... Bxd5 {[%clk 0:01:37]} 21.
c4 {[%clk 0:00:52.7]} 21... Bb7 {[%clk 0:01:35.3]} 22. Qe1 {[%clk 0:00:52.1]}
22... Rfe8 {[%clk 0:01:08]} 23. Qxe7 {[%clk 0:00:50.1]} 23... Rxe7 {[%clk
0:01:08.9]} 24. Bxd6 {[%clk 0:00:50.7]} 24... Rd7 {[%clk 0:01:09.1]} 25. Be5
{[%clk 0:00:48.2]} 25... Bxf3 {[%clk 0:00:58.8]} 26. Bxg7 {[%clk 0:00:45.2]}
26... Be2 {[%clk 0:00:59.3]} 27. Bf6 {[%clk 0:00:32.1]} 27... Bxf1 {[%clk
0:00:54.2]} 28. Rxf1 {[%clk 0:00:32.4]} 28... Rxd3 {[%clk 0:00:38.4]} 29. Rf4
{[%clk 0:00:32.8]} 29... Rd1+ {[%clk 0:00:30]} 30. Kf2 {[%clk 0:00:32.7]} 30...
Rd6 {[%clk 0:00:30.9]} 31. g4 {[%clk 0:00:31.9]} 31... Kf8 {[%clk 0:00:18.4]}
32. g5 {[%clk 0:00:32.4]} 32... Ke8 {[%clk 0:00:18.8]} 33. Re4+ {[%clk
0:00:32.7]} 33... Re6 {[%clk 0:00:18.3]} 34. Rh4 {[%clk 0:00:33.3]} 34... Kd7
{[%clk 0:00:18.3]} 35. Rh7 {[%clk 0:00:32.4]} 35... Rf8 {[%clk 0:00:16]} 36. Bg7
{[%clk 0:00:30.6]} 36... Rfe8 {[%clk 0:00:16.3]} 37. Bf6 {[%clk 0:00:31.3]}
37... Re2+ {[%clk 0:00:16.4]} 38. Kf1 {[%clk 0:00:30.7]} 38... Re1+ {[%clk
0:00:16.2]} 39. Kf2 {[%clk 0:00:31.3]} 39... R8e2+ {[%clk 0:00:17.1]} 40. Kf3
{[%clk 0:00:31.7]} 40... Ke6 {[%clk 0:00:18]} 41. Rh8 {[%clk 0:00:28.6]} 41...
Kf5 {[%clk 0:00:18.4]} 42. Rd8 {[%clk 0:00:28]} 42... Re3+ {[%clk 0:00:17.7]}
43. Kf2 {[%clk 0:00:28.5]} 43... R1e2+ {[%clk 0:00:17.8]} 44. Kf1 {[%clk
0:00:29.1]} 44... Rxh2 {[%clk 0:00:16.8]} 45. Rd7 {[%clk 0:00:25.2]} 45... Rb3
{[%clk 0:00:09.7]} 46. Kg1 {[%clk 0:00:23.4]} 46... Rc2 {[%clk 0:00:09.5]} 47.
Rd1 {[%clk 0:00:23.4]} 47... Kg4 {[%clk 0:00:07.9]} 48. Be7 {[%clk 0:00:20.4]}
48... Kg3 {[%clk 0:00:07.3]} 49. Bd6+ {[%clk 0:00:19.5]} 49... Kh3 {[%clk
0:00:06.9]} 50. Rf1 {[%clk 0:00:19.2]} 50... Rg2+ {[%clk 0:00:06.3]} 51. Kh1
{[%clk 0:00:19.3]} 51... Rxg5 {[%clk 0:00:06.8]} 52. Rf3+ {[%clk 0:00:18.3]}
52... Rxf3 {[%clk 0:00:06.7]} 53. Bg3 {[%clk 0:00:14.3]} 53... Rf1# {[%clk
0:00:05.9]} 0-1

[Event "*** Titled Tuesday Blitz"]
[Site "Chess.com"]
[Date "2020.04.21"]
[Round "2"]
[White "Diego_FloresQ"]
[Black "ferdipy"]
[Result "1-0"]
[WhiteElo "2438"]
[BlackElo "2202"]
[TimeControl "180+1"]
[EndTime "10:18:22 PDT"]
[Termination "Diego_FloresQ won on time"]

1. e4 {[%clk 0:02:54.3]} 1... e6 {[%clk 0:02:59.8]} 2. d4 {[%clk 0:02:52.6]}
2... d5 {[%clk 0:02:55.6]} 3. Nc3 {[%clk 0:02:51.6]} 3... Bb4 {[%clk 0:02:54.3]}
4. e5 {[%clk 0:02:47.8]} 4... c5 {[%clk 0:02:51.8]} 5. Qg4 {[%clk 0:02:46.2]}
5... Ne7 {[%clk 0:02:47.8]} 6. dxc5 {[%clk 0:02:44.8]} 6... Nbc6 {[%clk
0:02:42.6]} 7. Bd2 {[%clk 0:02:44.1]} 7... a6 {[%clk 0:02:39.5]} 8. O-O-O {[%clk
0:02:17.1]} 8... Bxc5 {[%clk 0:02:27.3]} 9. Nf3 {[%clk 0:02:09.4]} 9... Ng6
{[%clk 0:01:50.8]} 10. Qh5 {[%clk 0:01:43.6]} 10... Qc7 {[%clk 0:01:45.8]} 11.
Kb1 {[%clk 0:00:50.3]} 11... Ncxe5 {[%clk 0:01:37.6]} 12. Be2 {[%clk 0:00:43.5]}
12... Nc6 {[%clk 0:01:30.7]} 13. Ng5 {[%clk 0:00:34.8]} 13... Bd7 {[%clk
0:01:21.5]} 14. f4 {[%clk 0:00:23]} 14... Nce7 {[%clk 0:01:21.2]} 15. Rhf1
{[%clk 0:00:17.9]} 15... f6 {[%clk 0:01:06.8]} 16. Nh3 {[%clk 0:00:16.3]} 16...
O-O-O {[%clk 0:00:57.7]} 17. g4 {[%clk 0:00:16.8]} 17... Kb8 {[%clk 0:00:52.1]}
18. f5 {[%clk 0:00:16.3]} 18... Ne5 {[%clk 0:00:42.4]} 19. Bf4 {[%clk
0:00:14.8]} 19... Bd6 {[%clk 0:00:38.3]} 20. g5 {[%clk 0:00:11.1]} 20... Nxf5
{[%clk 0:00:31.2]} 21. gxf6 {[%clk 0:00:10.7]} 21... gxf6 {[%clk 0:00:32.1]} 22.
Nf2 {[%clk 0:00:07.7]} 22... Nc4 {[%clk 0:00:28.8]} 23. Bxd6 {[%clk 0:00:07.1]}
23... Nfxd6 {[%clk 0:00:29.7]} 24. Ng4 {[%clk 0:00:06.5]} 24... f5 {[%clk
0:00:25.9]} 25. Nf6 {[%clk 0:00:07.1]} 25... Rc8 {[%clk 0:00:23]} 26. Nxd7+
{[%clk 0:00:06.7]} 26... Qxd7 {[%clk 0:00:22.9]} 27. Bf3 {[%clk 0:00:06.1]}
27... Qc7 {[%clk 0:00:22.9]} 28. Rd3 {[%clk 0:00:05.7]} 28... Ne4 {[%clk
0:00:20.1]} 29. Qh6 {[%clk 0:00:04.4]} 29... Qb6 {[%clk 0:00:13]} 30. Nd1 {[%clk
0:00:01.5]} 30... Rhg8 {[%clk 0:00:09]} 31. Rb3 {[%clk 0:00:01.9]} 31... Qc6
{[%clk 0:00:08.5]} 32. Ne3 {[%clk 0:00:02.4]} 32... Rg6 {[%clk 0:00:08.9]} 33.
Qxh7 {[%clk 0:00:02.5]} 33... Ncd2+ {[%clk 0:00:08.8]} 34. Ka1 {[%clk
0:00:02.4]} 34... Nxf1 {[%clk 0:00:09.7]} 35. Qxg6 {[%clk 0:00:02.1]} 35... Nxe3
{[%clk 0:00:07.6]} 36. Bxe4 {[%clk 0:00:03]} 36... fxe4 {[%clk 0:00:07.3]} 37.
Rxe3 {[%clk 0:00:03.6]} 37... Qxc2 {[%clk 0:00:07]} 38. Qg3+ {[%clk 0:00:02.5]}
38... Ka7 {[%clk 0:00:06.1]} 39. a3 {[%clk 0:00:03.4]} 39... Qc1+ {[%clk
0:00:06.2]} 40. Ka2 {[%clk 0:00:04.3]} 40... Qc4+ {[%clk 0:00:06.6]} 41. Rb3
{[%clk 0:00:04.9]} 41... a5 {[%clk 0:00:05.8]} 42. Qe3+ {[%clk 0:00:05.5]} 42...
Kb8 {[%clk 0:00:05.7]} 43. Qb6 {[%clk 0:00:06.1]} 43... Qc6 {[%clk 0:00:05.1]}
44. Qxa5 {[%clk 0:00:06.7]} 44... Rc7 {[%clk 0:00:05.1]} 45. Qd2 {[%clk
0:00:06.9]} 45... Qc4 {[%clk 0:00:05.6]} 46. Qf4 {[%clk 0:00:06.4]} 46... e5
{[%clk 0:00:05.5]} 47. Qxe5 {[%clk 0:00:06.5]} 47... Qc6 {[%clk 0:00:03.6]} 48.
h4 {[%clk 0:00:07]} 48... Kc8 {[%clk 0:00:02.6]} 49. h5 {[%clk 0:00:06.9]} 49...
Rh7 {[%clk 0:00:02.2]} 50. Qf5+ {[%clk 0:00:06.6]} 1-0